[Event "Early-Titled-Tuesday-Blitz-May-07-2024"]
[Site "Chess.com"]
[Date "2024.05.07"]
[Round "6"]
[White "mind1mover"]
[Black "ravengelic"]
[Result "0-1"]
[WhiteElo "2894"]
[BlackElo "2661"]
[TimeControl "180+1"]
[EndTime "9:12:46 PDT"]
[Termination "ravengelic won on time"]

1. e4 {[%clk 0:03:00.9]} 1... c5 {[%clk 0:02:57.5]} 2. Nf3 {[%clk 0:03:01]} 2...
g6 {[%clk 0:02:57.7]} 3. d4 {[%clk 0:02:43.7]} 3... cxd4 {[%clk 0:02:58.6]} 4.
Qxd4 {[%clk 0:02:44.4]} 4... Nf6 {[%clk 0:02:54.4]} 5. Bb5 {[%clk 0:02:44.8]}
5... Nc6 {[%clk 0:02:53.2]} 6. Bxc6 {[%clk 0:02:44.1]} 6... bxc6 {[%clk
0:02:54.1]} 7. e5 {[%clk 0:02:39]} 7... Ng8 {[%clk 0:02:50.4]} 8. Qh4 {[%clk
0:02:19.2]} 8... Qb6 {[%clk 0:02:40]} 9. O-O {[%clk 0:02:17]} 9... Bg7 {[%clk
0:02:39.9]} 10. Nc3 {[%clk 0:02:03.3]} 10... c5 {[%clk 0:02:30.3]} 11. Nd5
{[%clk 0:01:45.2]} 11... Qc6 {[%clk 0:02:29.9]} 12. c4 {[%clk 0:01:45.6]} 12...
Bb7 {[%clk 0:02:25.5]} 13. Bg5 {[%clk 0:01:41.2]} 13... h6 {[%clk 0:02:13.2]}
14. Bd2 {[%clk 0:01:15.5]} 14... g5 {[%clk 0:02:13.3]} 15. Qg4 {[%clk
0:01:05.3]} 15... e6 {[%clk 0:02:13.3]} 16. Rad1 {[%clk 0:01:02.3]} 16... exd5
{[%clk 0:02:01.3]} 17. cxd5 {[%clk 0:01:03.2]} 17... Qxd5 {[%clk 0:02:02.2]} 18.
e6 {[%clk 0:01:03.3]} 18... dxe6 {[%clk 0:01:39.6]} 19. Bc3 {[%clk 0:01:03.4]}
19... Bd4 {[%clk 0:01:40.3]} 20. Nxd4 {[%clk 0:00:58.1]} 20... cxd4 {[%clk
0:01:38.2]} 21. Rxd4 {[%clk 0:00:59]} 21... Nf6 {[%clk 0:01:25.5]} 22. Qg3
{[%clk 0:00:44.8]} 22... Qc6 {[%clk 0:01:22.6]} 23. f3 {[%clk 0:00:33.1]} 23...
Rg8 {[%clk 0:01:14.8]} 24. Kh1 {[%clk 0:00:30]} 24... Nd5 {[%clk 0:01:08]} 25.
Qe5 {[%clk 0:00:27.8]} 25... O-O-O {[%clk 0:00:57.9]} 26. Rc1 {[%clk 0:00:23.7]}
26... Kd7 {[%clk 0:00:58.1]} 27. Bd2 {[%clk 0:00:20.2]} 27... Qd6 {[%clk
0:00:56.3]} 28. Qe2 {[%clk 0:00:17.2]} 28... Rc8 {[%clk 0:00:53.4]} 29. Qb5+
{[%clk 0:00:17.2]} 29... Bc6 {[%clk 0:00:52.4]} 30. Qa5 {[%clk 0:00:17.1]} 30...
Rc7 {[%clk 0:00:50]} 31. Be1 {[%clk 0:00:09.4]} 31... f5 {[%clk 0:00:42.3]} 32.
Bf2 {[%clk 0:00:06.2]} 32... Rgc8 {[%clk 0:00:38.7]} 33. Re1 {[%clk 0:00:04.1]}
33... Ba8 {[%clk 0:00:36.2]} 34. Qa4+ {[%clk 0:00:02.8]} 34... Ke7 {[%clk
0:00:35]} 35. Rdd1 {[%clk 0:00:02.1]} 35... Kf7 {[%clk 0:00:35.1]} 36. Qd4
{[%clk 0:00:01.8]} 36... Qf4 {[%clk 0:00:29.7]} 37. Qd3 {[%clk 0:00:01.6]} 37...
Rc1 {[%clk 0:00:27.1]} 38. Bg3 {[%clk 0:00:01.8]} 38... Rxd1 {[%clk 0:00:23.5]}
39. Qxd1 {[%clk 0:00:02.7]} 39... Qc4 {[%clk 0:00:20.5]} 40. Qd2 {[%clk
0:00:03.2]} 40... f4 {[%clk 0:00:19.2]} 41. Bf2 {[%clk 0:00:03.6]} 41... Qc2
{[%clk 0:00:19.4]} 42. Qd4 {[%clk 0:00:03]} 42... Rc7 {[%clk 0:00:17.9]} 43. Bg1
{[%clk 0:00:02.3]} 43... Bb7 {[%clk 0:00:18.4]} 44. Qe5 {[%clk 0:00:02.6]} 44...
Qc6 {[%clk 0:00:18.8]} 45. b4 {[%clk 0:00:02.1]} 45... Rd7 {[%clk 0:00:18.8]}
46. Qe4 {[%clk 0:00:02.5]} 46... Ne7 {[%clk 0:00:18.1]} 47. Qe5 {[%clk
0:00:03.1]} 47... Nf5 {[%clk 0:00:18.4]} 48. Qb8 {[%clk 0:00:01.9]} 48... Qc8
{[%clk 0:00:18.4]} 49. Qxa7 {[%clk 0:00:02.3]} 49... Bxf3 {[%clk 0:00:18.7]} 50.
Qf2 {[%clk 0:00:02.9]} 50... Bd5 {[%clk 0:00:18.7]} 51. Qe2 {[%clk 0:00:03.4]}
51... Qb7 {[%clk 0:00:19.6]} 52. Qh5+ {[%clk 0:00:03.9]} 52... Kg7 {[%clk
0:00:19.7]} 53. Qh3 {[%clk 0:00:04.3]} 53... Nh4 {[%clk 0:00:19.7]} 54. Bd4+
{[%clk 0:00:04.2]} 54... Kh7 {[%clk 0:00:18.5]} 55. Qd3+ {[%clk 0:00:04.6]}
55... Kg8 {[%clk 0:00:17.9]} 56. Kg1 {[%clk 0:00:05.1]} 56... Bxg2 {[%clk
0:00:16.7]} 57. Kf2 {[%clk 0:00:05.7]} 57... Qf3+ {[%clk 0:00:15.6]} 58. Qxf3
{[%clk 0:00:05.6]} 58... Bxf3 {[%clk 0:00:16.5]} 59. Bc5 {[%clk 0:00:02.6]}
59... Bd5 {[%clk 0:00:16.4]} 60. b5 {[%clk 0:00:01.7]} 60... Nf5 {[%clk
0:00:17]} 61. a4 {[%clk 0:00:01.9]} 61... g4 {[%clk 0:00:17.4]} 62. Rg1 {[%clk
0:00:01.9]} 62... g3+ {[%clk 0:00:18.3]} 63. hxg3 {[%clk 0:00:02.8]} 63... fxg3+
{[%clk 0:00:19.2]} 64. Ke2 {[%clk 0:00:03.7]} 64... Kf7 {[%clk 0:00:19.6]} 65.
a5 {[%clk 0:00:04.3]} 65... Bc4+ {[%clk 0:00:20.1]} 66. Kf3 {[%clk 0:00:04.6]}
66... Bxb5 {[%clk 0:00:21]} 67. a6 {[%clk 0:00:05.2]} 67... Rd3+ {[%clk
0:00:21.2]} 68. Kf4 {[%clk 0:00:05.4]} 68... Bxa6 {[%clk 0:00:22.1]} 0-1

[Event "Early-Titled-Tuesday-Blitz-May-07-2024"]
[Site "Chess.com"]
[Date "2024.05.07"]
[Round "6"]
[White "AlexeiShirov"]
[Black "MITerryble"]
[Result "1/2-1/2"]
[WhiteElo "2857"]
[BlackElo "3028"]
[TimeControl "180+1"]
[EndTime "9:12:54 PDT"]
[Termination "Game drawn - insufficient material"]

1. e4 {[%clk 0:03:00.9]} 1... e6 {[%clk 0:03:00.1]} 2. d4 {[%clk 0:03:00.2]}
2... d5 {[%clk 0:03:00.8]} 3. e5 {[%clk 0:03:00.8]} 3... c5 {[%clk 0:03:01.2]}
4. c3 {[%clk 0:03:00.1]} 4... Qb6 {[%clk 0:03:01.5]} 5. Nf3 {[%clk 0:03:00]}
5... Bd7 {[%clk 0:03:01.6]} 6. Be2 {[%clk 0:02:57.2]} 6... cxd4 {[%clk
0:03:01.4]} 7. cxd4 {[%clk 0:02:56.4]} 7... Bb5 {[%clk 0:03:01.8]} 8. Nc3 {[%clk
0:02:56.3]} 8... Bxe2 {[%clk 0:03:00.9]} 9. Nxe2 {[%clk 0:02:56.1]} 9... Bb4+
{[%clk 0:03:01.1]} 10. Bd2 {[%clk 0:02:54.4]} 10... Nc6 {[%clk 0:03:00.7]} 11.
O-O {[%clk 0:02:52.6]} 11... Bxd2 {[%clk 0:03:00.9]} 12. Qxd2 {[%clk 0:02:51.3]}
12... Nge7 {[%clk 0:03:01.8]} 13. Rac1 {[%clk 0:02:44.5]} 13... O-O {[%clk
0:03:01.8]} 14. Rc3 {[%clk 0:02:43.7]} 14... Rac8 {[%clk 0:02:58.1]} 15. Rfc1
{[%clk 0:02:42.7]} 15... Na5 {[%clk 0:02:54.1]} 16. b3 {[%clk 0:02:28.1]} 16...
h6 {[%clk 0:02:47.4]} 17. h4 {[%clk 0:02:25.2]} 17... Rxc3 {[%clk 0:02:44.3]}
18. Rxc3 {[%clk 0:02:23]} 18... Rc8 {[%clk 0:02:44.7]} 19. Rc5 {[%clk
0:02:22.5]} 19... Rxc5 {[%clk 0:02:30.6]} 20. dxc5 {[%clk 0:02:21.4]} 20... Qc7
{[%clk 0:02:31.2]} 21. Ned4 {[%clk 0:02:14.8]} 21... a6 {[%clk 0:02:26.6]} 22.
h5 {[%clk 0:01:42.9]} 22... Nac6 {[%clk 0:02:25]} 23. Nxc6 {[%clk 0:01:36.7]}
23... Nxc6 {[%clk 0:02:25.9]} 24. Qf4 {[%clk 0:01:35.7]} 24... Qa5 {[%clk
0:02:21.8]} 25. g4 {[%clk 0:01:23]} 25... Qxa2 {[%clk 0:02:15.3]} 26. g5 {[%clk
0:01:23]} 26... Qb1+ {[%clk 0:02:15.1]} 27. Kg2 {[%clk 0:01:21.7]} 27... Qe4
{[%clk 0:02:15.5]} 28. Qxe4 {[%clk 0:01:16]} 28... dxe4 {[%clk 0:02:15.7]} 29.
Nd2 {[%clk 0:01:15.2]} 29... hxg5 {[%clk 0:01:52.4]} 30. Nxe4 {[%clk 0:01:13.6]}
30... Nxe5 {[%clk 0:01:52.2]} 31. Nxg5 {[%clk 0:01:13.3]} 31... Kf8 {[%clk
0:01:31.8]} 32. Ne4 {[%clk 0:01:10.8]} 32... Ke7 {[%clk 0:01:31.6]} 33. f4
{[%clk 0:01:06.9]} 33... Nd7 {[%clk 0:01:20.7]} 34. b4 {[%clk 0:01:01.2]} 34...
Nf6 {[%clk 0:01:18.2]} 35. Nd6 {[%clk 0:00:56]} 35... b5 {[%clk 0:01:18.1]} 36.
Kf3 {[%clk 0:00:48.7]} 36... Nxh5 {[%clk 0:01:02.3]} 37. Nc8+ {[%clk 0:00:46.7]}
37... Kd7 {[%clk 0:01:01.7]} 38. Nd6 {[%clk 0:00:45.7]} 38... f5 {[%clk
0:00:59.2]} 39. Nf7 {[%clk 0:00:45.1]} 39... Nf6 {[%clk 0:00:59]} 40. Ne5+
{[%clk 0:00:44.6]} 40... Kc7 {[%clk 0:00:59.5]} 41. Ng6 {[%clk 0:00:39.4]} 41...
Kc6 {[%clk 0:00:38.6]} 42. Ne5+ {[%clk 0:00:29.1]} 42... Kd5 {[%clk 0:00:37.5]}
43. Ke2 {[%clk 0:00:26.5]} 43... Nh5 {[%clk 0:00:32.8]} 44. Ng6 {[%clk
0:00:25.4]} 44... Nf6 {[%clk 0:00:25.9]} 45. Kd3 {[%clk 0:00:24.5]} 45... Kc6
{[%clk 0:00:21.4]} 46. Nf8 {[%clk 0:00:15.3]} 46... Kd5 {[%clk 0:00:18.6]} 47.
Ng6 {[%clk 0:00:14.8]} 47... Ng8 {[%clk 0:00:16.4]} 48. Ne5 {[%clk 0:00:13.6]}
48... Ne7 {[%clk 0:00:13.2]} 49. Nd7 {[%clk 0:00:13.2]} 49... Kc6 {[%clk
0:00:06.3]} 50. Ne5+ {[%clk 0:00:12.8]} 50... Kc7 {[%clk 0:00:06.4]} 51. Kd4
{[%clk 0:00:13.5]} 51... Nd5 {[%clk 0:00:06.4]} 52. Nd3 {[%clk 0:00:14]} 52...
Ne7 {[%clk 0:00:04.4]} 53. Ke5 {[%clk 0:00:13.8]} 53... Kd7 {[%clk 0:00:04.9]}
54. Kd4 {[%clk 0:00:11]} 54... Nc6+ {[%clk 0:00:05.4]} 55. Ke3 {[%clk
0:00:10.6]} 55... a5 {[%clk 0:00:05]} 56. bxa5 {[%clk 0:00:09.7]} 56... Nxa5
{[%clk 0:00:05.9]} 57. Ne5+ {[%clk 0:00:09.3]} 57... Kc7 {[%clk 0:00:05.9]} 58.
Kd3 {[%clk 0:00:09.8]} 58... Nc6 {[%clk 0:00:05.7]} 59. Nf7 {[%clk 0:00:09.8]}
59... Kd7 {[%clk 0:00:05.8]} 60. Ng5 {[%clk 0:00:09.7]} 60... Ke7 {[%clk
0:00:04.2]} 61. Nf3 {[%clk 0:00:09.7]} 61... Kf6 {[%clk 0:00:04.7]} 62. Kc3
{[%clk 0:00:09.6]} 62... g6 {[%clk 0:00:02.8]} 63. Kb3 {[%clk 0:00:09.3]} 63...
e5 {[%clk 0:00:03]} 64. fxe5+ {[%clk 0:00:08.8]} 64... Nxe5 {[%clk 0:00:03.9]}
65. Nd4 {[%clk 0:00:08.8]} 65... g5 {[%clk 0:00:03.6]} 66. c6 {[%clk 0:00:08.7]}
66... Nf7 {[%clk 0:00:01.3]} 67. Nxb5 {[%clk 0:00:06.5]} 67... Ke7 {[%clk
0:00:01.2]} 68. c7 {[%clk 0:00:05.7]} 68... Kd7 {[%clk 0:00:02.1]} 69. Nd4
{[%clk 0:00:05.6]} 69... f4 {[%clk 0:00:02.2]} 70. Kc4 {[%clk 0:00:05.8]} 70...
Kxc7 {[%clk 0:00:02.3]} 71. Kd5 {[%clk 0:00:06.4]} 71... Kd7 {[%clk 0:00:02.9]}
72. Ke4 {[%clk 0:00:06.7]} 72... Nd6+ {[%clk 0:00:03.5]} 73. Kf3 {[%clk
0:00:06.6]} 73... Ke7 {[%clk 0:00:03.5]} 74. Kg4 {[%clk 0:00:06.8]} 74... Nf7
{[%clk 0:00:03.9]} 75. Nf3 {[%clk 0:00:07.1]} 75... Kf6 {[%clk 0:00:02.4]} 76.
Nxg5 {[%clk 0:00:07.7]} 76... Nxg5 {[%clk 0:00:02.8]} 77. Kxf4 {[%clk 0:00:08]}
1/2-1/2

[Event "Early-Titled-Tuesday-Blitz-May-07-2024"]
[Site "Chess.com"]
[Date "2024.05.07"]
[Round "6"]
[White "VD_coach"]
[Black "ccccvhhhj"]
[Result "1/2-1/2"]
[WhiteElo "2592"]
[BlackElo "2488"]
[TimeControl "180+1"]
[EndTime "9:13:02 PDT"]
[Termination "Game drawn - insufficient material"]

1. Nf3 {[%clk 0:03:00.9]} 1... d5 {[%clk 0:02:59.4]} 2. d4 {[%clk 0:02:47.4]}
2... c6 {[%clk 0:02:53.4]} 3. c4 {[%clk 0:02:48.2]} 3... e6 {[%clk 0:02:52.6]}
4. Nc3 {[%clk 0:02:48.5]} 4... dxc4 {[%clk 0:02:52.8]} 5. e4 {[%clk 0:02:47.9]}
5... b5 {[%clk 0:02:51.9]} 6. a4 {[%clk 0:02:48.2]} 6... Bb4 {[%clk 0:02:52.3]}
7. Bd2 {[%clk 0:02:48.4]} 7... a5 {[%clk 0:02:52.3]} 8. axb5 {[%clk 0:02:48.3]}
8... Bxc3 {[%clk 0:02:52.1]} 9. bxc3 {[%clk 0:02:49.2]} 9... cxb5 {[%clk
0:02:52.5]} 10. Be2 {[%clk 0:02:49.7]} 10... Bb7 {[%clk 0:02:46.4]} 11. Qb1
{[%clk 0:02:25.9]} 11... Ba6 {[%clk 0:01:59.6]} 12. O-O {[%clk 0:02:22.8]} 12...
Ne7 {[%clk 0:01:54.3]} 13. Bg5 {[%clk 0:02:18.4]} 13... O-O {[%clk 0:01:53.5]}
14. Bxe7 {[%clk 0:02:15.6]} 14... Qxe7 {[%clk 0:01:53.4]} 15. Rxa5 {[%clk
0:02:16.1]} 15... Nc6 {[%clk 0:01:43.5]} 16. Rxa6 {[%clk 0:02:02.1]} 16... Rxa6
{[%clk 0:01:43.3]} 17. Qxb5 {[%clk 0:02:02.7]} 17... Qa7 {[%clk 0:01:38.3]} 18.
Qxc4 {[%clk 0:01:50.1]} 18... Rb6 {[%clk 0:01:24.2]} 19. d5 {[%clk 0:01:39.3]}
19... exd5 {[%clk 0:01:21.9]} 20. exd5 {[%clk 0:01:40.2]} 20... Na5 {[%clk
0:01:20.2]} 21. Qh4 {[%clk 0:01:30.4]} 21... Nb3 {[%clk 0:01:05.1]} 22. Bd3
{[%clk 0:01:16.9]} 22... Rh6 {[%clk 0:00:57.3]} 23. Qb4 {[%clk 0:01:11.4]} 23...
Nc5 {[%clk 0:00:51.9]} 24. Bb1 {[%clk 0:01:02.4]} 24... Nd7 {[%clk 0:00:40.7]}
25. Re1 {[%clk 0:00:58.7]} 25... Qc5 {[%clk 0:00:18.8]} 26. Qxc5 {[%clk
0:00:48.4]} 26... Nxc5 {[%clk 0:00:19.7]} 27. Nd4 {[%clk 0:00:48.5]} 27... Rd8
{[%clk 0:00:17.4]} 28. c4 {[%clk 0:00:44.8]} 28... Rb6 {[%clk 0:00:14.6]} 29.
Nb5 {[%clk 0:00:42.3]} 29... g6 {[%clk 0:00:14.5]} 30. g3 {[%clk 0:00:42.1]}
30... Rc8 {[%clk 0:00:08]} 31. Kg2 {[%clk 0:00:41.5]} 31... Na4 {[%clk
0:00:08.2]} 32. Bd3 {[%clk 0:00:39.3]} 32... Nb2 {[%clk 0:00:08.8]} 33. d6
{[%clk 0:00:30]} 33... Kf8 {[%clk 0:00:04]} 34. Bf1 {[%clk 0:00:19.9]} 34...
Nxc4 {[%clk 0:00:03.7]} 35. d7 {[%clk 0:00:20.1]} 35... Rd8 {[%clk 0:00:03.3]}
36. Re8+ {[%clk 0:00:17.6]} 36... Rxe8 {[%clk 0:00:03.5]} 37. dxe8=Q+ {[%clk
0:00:18.5]} 37... Kxe8 {[%clk 0:00:03.6]} 38. Bxc4 {[%clk 0:00:18.6]} 38... Kf8
{[%clk 0:00:04.3]} 39. Be2 {[%clk 0:00:18.6]} 39... Rc6 {[%clk 0:00:04.5]} 40.
h4 {[%clk 0:00:18.7]} 40... Rc2 {[%clk 0:00:04.7]} 41. Bf3 {[%clk 0:00:18.4]}
41... Rb2 {[%clk 0:00:05.2]} 42. Nd4 {[%clk 0:00:17.4]} 42... Kg7 {[%clk
0:00:05.7]} 43. Nc6 {[%clk 0:00:17.5]} 43... f5 {[%clk 0:00:05.2]} 44. Ne5
{[%clk 0:00:16.9]} 44... Kf6 {[%clk 0:00:04.8]} 45. Nd7+ {[%clk 0:00:16.1]}
45... Kg7 {[%clk 0:00:04.7]} 46. Nc5 {[%clk 0:00:17]} 46... Ra2 {[%clk 0:00:04]}
47. Ne6+ {[%clk 0:00:17.1]} 47... Kf6 {[%clk 0:00:04.1]} 48. Nf4 {[%clk
0:00:18]} 48... Rb2 {[%clk 0:00:04.5]} 49. Bd5 {[%clk 0:00:18.2]} 49... Kg7
{[%clk 0:00:05.3]} 50. Kf3 {[%clk 0:00:18.3]} 50... Rd2 {[%clk 0:00:05.9]} 51.
Ke3 {[%clk 0:00:18.3]} 51... Rb2 {[%clk 0:00:06.5]} 52. Bf3 {[%clk 0:00:17.9]}
52... h6 {[%clk 0:00:06.9]} 53. Bd5 {[%clk 0:00:17.6]} 53... g5 {[%clk
0:00:06.6]} 54. hxg5 {[%clk 0:00:18.5]} 54... hxg5 {[%clk 0:00:07.5]} 55. Ne2
{[%clk 0:00:18.3]} 55... Kf6 {[%clk 0:00:07.3]} 56. Bg2 {[%clk 0:00:18]} 56...
Rb3+ {[%clk 0:00:07.3]} 57. Kd2 {[%clk 0:00:17.6]} 57... Ra3 {[%clk 0:00:08.2]}
58. f3 {[%clk 0:00:16.5]} 58... Ra2+ {[%clk 0:00:08.2]} 59. Ke3 {[%clk
0:00:16.7]} 59... Ke5 {[%clk 0:00:07.9]} 60. f4+ {[%clk 0:00:16.5]} 60... gxf4+
{[%clk 0:00:08]} 61. gxf4+ {[%clk 0:00:17.4]} 61... Kf6 {[%clk 0:00:07.6]} 62.
Bd5 {[%clk 0:00:17.4]} 62... Ra3+ {[%clk 0:00:07.6]} 63. Kd4 {[%clk 0:00:17.3]}
63... Rh3 {[%clk 0:00:07.1]} 64. Nc3 {[%clk 0:00:16.7]} 64... Rh4 {[%clk
0:00:06.7]} 65. Ne2 {[%clk 0:00:17]} 65... Rh2 {[%clk 0:00:06.7]} 66. Bf3 {[%clk
0:00:16.6]} 66... Rh8 {[%clk 0:00:05]} 67. Ke3 {[%clk 0:00:16.8]} 67... Rd8
{[%clk 0:00:05.9]} 68. Kf2 {[%clk 0:00:16.9]} 68... Rh8 {[%clk 0:00:05.9]} 69.
Nd4 {[%clk 0:00:17]} 69... Rb8 {[%clk 0:00:05.5]} 70. Ke3 {[%clk 0:00:17.2]}
70... Rb1 {[%clk 0:00:04.1]} 71. Ne2 {[%clk 0:00:17.3]} 71... Rb3+ {[%clk
0:00:04.4]} 72. Kf2 {[%clk 0:00:17.3]} 72... Ra3 {[%clk 0:00:05.3]} 73. Ng3
{[%clk 0:00:17.7]} 73... Ra2+ {[%clk 0:00:05.6]} 74. Be2 {[%clk 0:00:18.2]}
74... Ra3 {[%clk 0:00:06.5]} 75. Bc4 {[%clk 0:00:16.1]} 75... Ra4 {[%clk
0:00:06.4]} 76. Bd3 {[%clk 0:00:16.1]} 76... Rxf4+ {[%clk 0:00:06.3]} 77. Ke3
{[%clk 0:00:16.4]} 77... Rb4 {[%clk 0:00:05.9]} 78. Nxf5 {[%clk 0:00:16.7]}
78... Rb3 {[%clk 0:00:05.1]} 79. Kd4 {[%clk 0:00:16.6]} 79... Rxd3+ {[%clk
0:00:05.4]} 80. Kxd3 {[%clk 0:00:17.5]} 1/2-1/2

[Event "Early-Titled-Tuesday-Blitz-May-07-2024"]
[Site "Chess.com"]
[Date "2024.05.07"]
[Round "6"]
[White "Meri-Arabidze"]
[Black "MagnusCarlsen"]
[Result "1/2-1/2"]
[WhiteElo "2708"]
[BlackElo "3205"]
[TimeControl "180+1"]
[EndTime "9:13:10 PDT"]
[Termination "Game drawn by repetition"]

1. Nf3 {[%clk 0:03:00.9]} 1... a5 {[%clk 0:03:00.9]} 2. c4 {[%clk 0:02:59.5]}
2... Ra6 {[%clk 0:02:48.1]} 3. d4 {[%clk 0:02:56.3]} 3... g6 {[%clk 0:02:49]} 4.
g3 {[%clk 0:02:55.4]} 4... Bg7 {[%clk 0:02:49.6]} 5. Bg2 {[%clk 0:02:55.5]} 5...
Nf6 {[%clk 0:02:49.9]} 6. O-O {[%clk 0:02:55.7]} 6... O-O {[%clk 0:02:50.6]} 7.
Nc3 {[%clk 0:02:55.5]} 7... d5 {[%clk 0:02:51.1]} 8. cxd5 {[%clk 0:02:45.8]}
8... Nxd5 {[%clk 0:02:52]} 9. Bd2 {[%clk 0:02:40.2]} 9... Nb6 {[%clk 0:02:45.6]}
10. Qc2 {[%clk 0:02:30.3]} 10... a4 {[%clk 0:02:45.3]} 11. Rfd1 {[%clk
0:02:21.2]} 11... Nc6 {[%clk 0:02:45]} 12. Be1 {[%clk 0:02:03.2]} 12... Bf5
{[%clk 0:02:38.3]} 13. e4 {[%clk 0:01:57.1]} 13... Bg4 {[%clk 0:02:37.8]} 14.
Ne2 {[%clk 0:01:57]} 14... a3 {[%clk 0:02:36.5]} 15. b3 {[%clk 0:01:54.7]} 15...
Bxf3 {[%clk 0:02:33.4]} 16. Bxf3 {[%clk 0:01:54.5]} 16... Nxd4 {[%clk
0:02:33.8]} 17. Nxd4 {[%clk 0:01:50.4]} 17... Bxd4 {[%clk 0:02:34.7]} 18. Rac1
{[%clk 0:01:38.7]} 18... c5 {[%clk 0:02:25.8]} 19. b4 {[%clk 0:01:37.7]} 19...
e5 {[%clk 0:02:25]} 20. bxc5 {[%clk 0:01:37]} 20... Na4 {[%clk 0:02:25.5]} 21.
Be2 {[%clk 0:01:07.4]} 21... Ra8 {[%clk 0:02:18]} 22. Bb4 {[%clk 0:01:07]} 22...
Qf6 {[%clk 0:02:16.8]} 23. Bb5 {[%clk 0:01:00]} 23... Nb2 {[%clk 0:02:13.4]} 24.
Rd2 {[%clk 0:00:49.8]} 24... Rfc8 {[%clk 0:02:13]} 25. Qb3 {[%clk 0:00:43.6]}
25... Rc7 {[%clk 0:02:12.7]} 26. Bxa3 {[%clk 0:00:40.6]} 26... Na4 {[%clk
0:01:21.4]} 27. Bxa4 {[%clk 0:00:36.8]} 27... Qa6 {[%clk 0:01:21.8]} 28. Rc4
{[%clk 0:00:22.4]} 28... b5 {[%clk 0:01:21]} 29. Bxb5 {[%clk 0:00:16.8]} 29...
Qxa3 {[%clk 0:01:20]} 30. Qxa3 {[%clk 0:00:17.2]} 30... Rxa3 {[%clk 0:01:20.4]}
31. c6 {[%clk 0:00:12]} 31... Kf8 {[%clk 0:01:19.8]} 32. Rcc2 {[%clk 0:00:05]}
32... Ke7 {[%clk 0:01:19.4]} 33. Kg2 {[%clk 0:00:04.9]} 33... f6 {[%clk
0:01:17.8]} 34. Bc4 {[%clk 0:00:04.9]} 34... Rxc6 {[%clk 0:01:16.6]} 35. Bb3
{[%clk 0:00:05.3]} 35... Rxc2 {[%clk 0:01:08.2]} 36. Rxc2 {[%clk 0:00:06.2]}
36... Kd7 {[%clk 0:01:08]} 37. Rc4 {[%clk 0:00:06]} 37... Ra7 {[%clk 0:01:06.5]}
38. Ra4 {[%clk 0:00:06]} 38... Rc7 {[%clk 0:01:05.1]} 39. Rc4 {[%clk 0:00:05.8]}
39... Bc5 {[%clk 0:01:04.7]} 40. h4 {[%clk 0:00:03]} 40... Kd6 {[%clk
0:01:04.9]} 41. Kf3 {[%clk 0:00:02.8]} 41... f5 {[%clk 0:00:56.8]} 42. Rc2
{[%clk 0:00:02.3]} 42... Rb7 {[%clk 0:00:52.4]} 43. h5 {[%clk 0:00:02.1]} 43...
Rb4 {[%clk 0:00:50.8]} 44. exf5 {[%clk 0:00:01.7]} 44... gxf5 {[%clk 0:00:50.5]}
45. Kg2 {[%clk 0:00:01.5]} 45... h6 {[%clk 0:00:49.8]} 46. Rd2+ {[%clk 0:00:02]}
46... Bd4 {[%clk 0:00:48.5]} 47. Rc2 {[%clk 0:00:02.6]} 47... Rb8 {[%clk
0:00:48.1]} 48. Rc4 {[%clk 0:00:02.8]} 48... Bc5 {[%clk 0:00:46]} 49. Rc2 {[%clk
0:00:02.9]} 49... Ra8 {[%clk 0:00:39.5]} 50. Rd2+ {[%clk 0:00:03.1]} 50... Bd4
{[%clk 0:00:39.6]} 51. f4 {[%clk 0:00:03]} 51... Rc8 {[%clk 0:00:37.5]} 52.
fxe5+ {[%clk 0:00:03.4]} 52... Kxe5 {[%clk 0:00:38.2]} 53. Re2+ {[%clk
0:00:04.1]} 53... Kf6 {[%clk 0:00:29.8]} 54. Re6+ {[%clk 0:00:04]} 54... Kg7
{[%clk 0:00:24.7]} 55. Rg6+ {[%clk 0:00:04.1]} 55... Kh7 {[%clk 0:00:24.9]} 56.
Rd6 {[%clk 0:00:04.7]} 56... Be5 {[%clk 0:00:20.7]} 57. Rd5 {[%clk 0:00:04.7]}
57... Re8 {[%clk 0:00:20.5]} 58. Rd7+ {[%clk 0:00:04.6]} 58... Kh8 {[%clk
0:00:19.5]} 59. Bf7 {[%clk 0:00:04.8]} 59... Ra8 {[%clk 0:00:17.5]} 60. Bb3
{[%clk 0:00:04.6]} 60... Rc8 {[%clk 0:00:13.5]} 61. Rd5 {[%clk 0:00:04.1]} 61...
Re8 {[%clk 0:00:13.5]} 62. Rd7 {[%clk 0:00:04.1]} 62... Bc3 {[%clk 0:00:10.1]}
63. Kf3 {[%clk 0:00:04.3]} 63... Re1 {[%clk 0:00:08]} 64. Rd8+ {[%clk
0:00:03.9]} 64... Kg7 {[%clk 0:00:07.1]} 65. Rd7+ {[%clk 0:00:04.5]} 65... Kf8
{[%clk 0:00:03.3]} 66. Rc7 {[%clk 0:00:04.3]} 66... Be5 {[%clk 0:00:01.8]} 67.
Rf7+ {[%clk 0:00:04.3]} 67... Ke8 {[%clk 0:00:02.4]} 68. Rxf5 {[%clk 0:00:04.8]}
68... Ke7 {[%clk 0:00:02.4]} 69. Rf7+ {[%clk 0:00:04.4]} 69... Kd6 {[%clk
0:00:02.1]} 70. Rh7 {[%clk 0:00:04.5]} 70... Rf1+ {[%clk 0:00:01.9]} 71. Kg2
{[%clk 0:00:04.7]} 71... Rf6 {[%clk 0:00:02.2]} 72. Rf7 {[%clk 0:00:05]} 72...
Rxf7 {[%clk 0:00:02.4]} 73. Bxf7 {[%clk 0:00:05.3]} 73... Bf6 {[%clk 0:00:03.3]}
74. Bg6 {[%clk 0:00:05.5]} 74... Bg5 {[%clk 0:00:04.2]} 75. Kf3 {[%clk
0:00:05.9]} 75... Kc5 {[%clk 0:00:05.1]} 76. Ke4 {[%clk 0:00:06]} 76... Kb6
{[%clk 0:00:06]} 77. Kf5 {[%clk 0:00:05.9]} 77... Ka5 {[%clk 0:00:06.9]} 78. Bf7
{[%clk 0:00:05.8]} 78... Kb6 {[%clk 0:00:07.8]} 79. Kg6 {[%clk 0:00:06.2]} 79...
Ka7 {[%clk 0:00:08.7]} 80. Kf5 {[%clk 0:00:06.5]} 80... Kb6 {[%clk 0:00:09.6]}
81. Kg6 {[%clk 0:00:07.2]} 81... Ka7 {[%clk 0:00:10.5]} 82. Kf5 {[%clk
0:00:07.8]} 82... Kb6 {[%clk 0:00:11.4]} 1/2-1/2